[Event "January 2 Late 2024"]
[Site "https://www.chess.com"]
[Date "2024.01.02"]
[Round "2"]
[White "Vujacic, Igor"]
[Black "MiguelEduardoGB"]
[Result "1/2-1/2"]
[Board "210"]
[TimeControl "180+1"]
[WhiteFideId "932620"]
[WhiteElo "2457"]
[BlackElo "2199"]
[WhiteTeam "MNE"]
[WhiteClock "0:00:09"]
[BlackClock "0:00:07"]

1. d4 {[%clk 0:03:00]}  d5 {[%clk 0:02:57]} 2. Nf3 {[%clk 0:03:01]}  Nc6 {[%clk 0:02:57]} 3. Bf4 {[%clk 0:03:01]}  Bg4 {[%clk 0:02:56]} 4. Nbd2 {[%clk 0:02:56]}  e6 {[%clk 0:02:57]} 5. e3 {[%clk 0:02:55]}  Bd6 {[%clk 0:02:57]} 6. Bg3 {[%clk 0:02:53]}  Nf6 {[%clk 0:02:56]} 7. c4 {[%clk 0:02:52]}  Ne7 {[%clk 0:02:56]} 8. c5 {[%clk 0:02:50]}  Bxg3 {[%clk 0:02:56]} 9. hxg3 {[%clk 0:02:51]}  c6 {[%clk 0:02:53]} 10. b4 {[%clk 0:02:45]}  Ne4 {[%clk 0:02:52]} 11. Qb3 {[%clk 0:02:37]}  a6 {[%clk 0:02:49]} 12. Nxe4 {[%clk 0:02:32]}  dxe4 {[%clk 0:02:48]} 13. Nd2 {[%clk 0:02:18]}  Bf5 {[%clk 0:02:37]} 14. Nc4 {[%clk 0:02:11]}  O-O {[%clk 0:02:31]} 15. Be2 {[%clk 0:02:05]}  Nc8 {[%clk 0:02:10]} 16. a4 {[%clk 0:01:59]}  Qd5 {[%clk 0:02:04]} 17. Na5 {[%clk 0:01:42]}  Qxb3 {[%clk 0:01:58]} 18. Nxb3 {[%clk 0:01:43]}  Ne7 {[%clk 0:01:58]} 19. O-O {[%clk 0:01:34]}  Nd5 {[%clk 0:01:55]} 20. b5 {[%clk 0:01:33]}  axb5 {[%clk 0:01:48]} 21. axb5 {[%clk 0:01:33]}  Nc3 {[%clk 0:01:48]} 22. Rfe1 {[%clk 0:01:08]}  cxb5 {[%clk 0:01:20]} 23. Bf1 {[%clk 0:01:06]}  e5 {[%clk 0:01:12]} 24. dxe5 {[%clk 0:00:54]}  Be6 {[%clk 0:00:44]} 25. Nd4 {[%clk 0:00:40]}  b4 {[%clk 0:00:41]} 26. Nxe6 {[%clk 0:00:34]}  fxe6 {[%clk 0:00:40]} 27. Bc4 {[%clk 0:00:35]}  Kf7 {[%clk 0:00:38]} 28. f4 {[%clk 0:00:24]}  Rfc8 {[%clk 0:00:36]} 29. f5 {[%clk 0:00:17]}  Rxa1 {[%clk 0:00:36]} 30. Bxe6+ {[%clk 0:00:17]}  Ke7 {[%clk 0:00:36]} 31. Rxa1 {[%clk 0:00:16]}  Rxc5 {[%clk 0:00:36]} 32. Ra7 {[%clk 0:00:16]}  Rb5 {[%clk 0:00:20]} 33. Bb3 {[%clk 0:00:09]}  Ne2+ {[%clk 0:00:15]} 34. Kf2 {[%clk 0:00:09]}  Nc1 {[%clk 0:00:16]} 35. Bc4 {[%clk 0:00:08]}  Rb6 {[%clk 0:00:15]} 36. Ra1 {[%clk 0:00:09]}  Nd3+ {[%clk 0:00:12]} 37. Bxd3 {[%clk 0:00:08]}  exd3 {[%clk 0:00:13]} 38. Ke1 {[%clk 0:00:08]}  Rb5 {[%clk 0:00:12]} 39. Kd2 {[%clk 0:00:06]}  Rxe5 {[%clk 0:00:12]} 40. g4 {[%clk 0:00:06]}  Rb5 {[%clk 0:00:11]} 41. Kxd3 {[%clk 0:00:06]}  Kf6 {[%clk 0:00:11]} 42. Kc4 {[%clk 0:00:06]}  Rb6 {[%clk 0:00:12]} 43. Kc5 {[%clk 0:00:06]}  Rc6+ {[%clk 0:00:11]} 44. Kxb4 {[%clk 0:00:07]}  Kg5 {[%clk 0:00:10]} 45. Rd1 {[%clk 0:00:03]}  Kxg4 {[%clk 0:00:10]} 46. Rd7 {[%clk 0:00:04]}  Kxf5 {[%clk 0:00:07]} 47. Rxg7 {[%clk 0:00:04]}  Ke4 {[%clk 0:00:07]} 48. Re7+ {[%clk 0:00:04]}  Kd3 {[%clk 0:00:06]} 49. Rxb7 {[%clk 0:00:02]}  Rh6 {[%clk 0:00:04]} 50. Re7 {[%clk 0:00:01]}  Rh4+ {[%clk 0:00:04]} 51. Kc5 {[%clk 0:00:02]}  Rg4 {[%clk 0:00:02]} 52. Re6 {[%clk 0:00:01]}  Rxg2 {[%clk 0:00:02]} 53. Rh6 {[%clk 0:00:02]}  Rg7 {[%clk 0:00:02]} 54. Rh3 {[%clk 0:00:02]}  Ke4 {[%clk 0:00:02]} 55. Kc4 {[%clk 0:00:02]}  Ke5 {[%clk 0:00:03]} 56. Kd3 {[%clk 0:00:03]}  Kf5 {[%clk 0:00:03]} 57. Ke2 {[%clk 0:00:03]}  Kg5 {[%clk 0:00:04]} 58. Rg3+ {[%clk 0:00:03]}  Kf6 {[%clk 0:00:04]} 59. Rf3+ {[%clk 0:00:03]}  Ke6 {[%clk 0:00:04]} 60. Rf4 {[%clk 0:00:04]}  Rf7 {[%clk 0:00:03]} 61. Rg4 {[%clk 0:00:04]}  h5 {[%clk 0:00:02]} 62. Rg5 {[%clk 0:00:04]}  Rh7 {[%clk 0:00:02]} 63. Kf3 {[%clk 0:00:04]}  Kf6 {[%clk 0:00:03]} 64. Ra5 {[%clk 0:00:04]}  h4 {[%clk 0:00:03]} 65. Kg2 {[%clk 0:00:04]}  Ke6 {[%clk 0:00:03]} 66. Kh3 {[%clk 0:00:05]}  Kf6 {[%clk 0:00:03]} 67. Ra4 {[%clk 0:00:04]}  Ke5 {[%clk 0:00:03]} 68. Rf4 {[%clk 0:00:05]}  Rh6 {[%clk 0:00:02]} 69. Rg4 {[%clk 0:00:05]}  Rh7 {[%clk 0:00:02]} 70. Rd4 {[%clk 0:00:05]}  Rh6 {[%clk 0:00:02]} 71. Ra4 {[%clk 0:00:05]}  Rh7 {[%clk 0:00:03]} 72. Kg2 {[%clk 0:00:05]}  h3+ {[%clk 0:00:02]} 73. Kh2 {[%clk 0:00:06]}  Rh6 {[%clk 0:00:03]} 74. Rg4 {[%clk 0:00:06]}  Rh7 {[%clk 0:00:04]} 75. Rg3 {[%clk 0:00:06]}  Rh6 {[%clk 0:00:04]} 76. Rg4 {[%clk 0:00:05]}  Rh7 {[%clk 0:00:04]} 77. Rd4 {[%clk 0:00:06]}  Rh6 {[%clk 0:00:04]} 78. Rf4 {[%clk 0:00:06]}  Rh7 {[%clk 0:00:05]} 79. Rf8 {[%clk 0:00:06]}  Rh6 {[%clk 0:00:05]} 80. Re8+ {[%clk 0:00:07]}  Kf5 {[%clk 0:00:05]} 81. Rf8+ {[%clk 0:00:07]}  Ke5 {[%clk 0:00:05]} 82. Rf4 {[%clk 0:00:07]}  Rh5 {[%clk 0:00:05]} 83. Rg4 {[%clk 0:00:07]}  Rh6 {[%clk 0:00:05]} 84. Rg3 {[%clk 0:00:06]}  Rh5 {[%clk 0:00:06]} 85. Rg6 {[%clk 0:00:06]}  Rh7 {[%clk 0:00:06]} 86. Rg8 {[%clk 0:00:06]}  Rh6 {[%clk 0:00:06]} 87. Rg5+ {[%clk 0:00:06]}  Ke4 {[%clk 0:00:06]} 88. Rg3 {[%clk 0:00:07]}  Rh5 {[%clk 0:00:06]} 89. Rg4+ {[%clk 0:00:06]}  Kxe3 {[%clk 0:00:07]} 90. Rg3+ {[%clk 0:00:07]}  Ke4 {[%clk 0:00:07]} 91. Rxh3 {[%clk 0:00:08]}  Rxh3+ {[%clk 0:00:07]} 92. Kxh3 {[%clk 0:00:09]} 1/2-1/2

[Event "January 2 Late 2024"]
[Site "https://www.chess.com"]
[Date "2024.01.02"]
[Round "2"]
[White "Ferriz Barrios, Andres"]
[Black "Toktomushev, Teimur"]
[Result "0-1"]
[Board "211"]
[TimeControl "180+1"]
[WhiteFideId "5104467"]
[BlackFideId "14176726"]
[WhiteElo "2194"]
[BlackElo "2456"]
[WhiteTeam "MEX"]
[BlackTeam "UKR"]
[WhiteClock "0:00:52"]
[BlackClock "0:00:06"]

1. d4 {[%clk 0:03:00]}  d5 {[%clk 0:02:59]} 2. Nf3 {[%clk 0:03:01]}  Nf6 {[%clk 0:02:59]} 3. Nbd2 {[%clk 0:03:01]}  c5 {[%clk 0:02:59]} 4. e3 {[%clk 0:03:02]}  Nc6 {[%clk 0:03:00]} 5. c3 {[%clk 0:03:01]}  Bg4 {[%clk 0:02:59]} 6. Bd3 {[%clk 0:03:01]}  e6 {[%clk 0:02:55]} 7. Bb5 {[%clk 0:02:58]}  cxd4 {[%clk 0:02:53]} 8. exd4 {[%clk 0:02:59]}  Bd6 {[%clk 0:02:52]} 9. O-O {[%clk 0:02:59]}  O-O {[%clk 0:02:53]} 10. h3 {[%clk 0:02:59]}  Bh5 {[%clk 0:02:52]} 11. Re1 {[%clk 0:03:00]}  a6 {[%clk 0:02:49]} 12. Be2 {[%clk 0:02:59]}  b5 {[%clk 0:02:40]} 13. Nf1 {[%clk 0:02:58]}  b4 {[%clk 0:02:39]} 14. Bg5 {[%clk 0:02:56]}  h6 {[%clk 0:02:37]} 15. Bh4 {[%clk 0:02:55]}  Ne7 {[%clk 0:02:37]} 16. Bxf6 {[%clk 0:02:54]}  gxf6 {[%clk 0:02:38]} 17. Qd2 {[%clk 0:02:47]}  Kh7 {[%clk 0:02:33]} 18. Ng3 {[%clk 0:02:44]}  Bxg3 {[%clk 0:02:33]} 19. fxg3 {[%clk 0:02:45]}  Bg6 {[%clk 0:02:28]} 20. cxb4 {[%clk 0:02:41]}  Rc8 {[%clk 0:02:27]} 21. Rac1 {[%clk 0:02:39]}  Qb6 {[%clk 0:02:28]} 22. a3 {[%clk 0:02:39]}  Be4 {[%clk 0:02:27]} 23. Bd3 {[%clk 0:02:37]}  f5 {[%clk 0:02:26]} 24. Bxe4 {[%clk 0:02:36]}  fxe4 {[%clk 0:02:23]} 25. Nh4 {[%clk 0:02:36]}  e5 {[%clk 0:02:11]} 26. Rc5 {[%clk 0:02:34]}  Rxc5 {[%clk 0:01:51]} 27. dxc5 {[%clk 0:02:33]}  Qc6 {[%clk 0:01:37]} 28. Rf1 {[%clk 0:02:13]}  f5 {[%clk 0:01:36]} 29. Qe2 {[%clk 0:01:56]}  Qe6 {[%clk 0:00:28]} 30. Rc1 {[%clk 0:01:39]}  d4 {[%clk 0:00:24]} 31. c6 {[%clk 0:01:37]}  d3 {[%clk 0:00:19]} 32. Qe3 {[%clk 0:01:30]}  Nxc6 {[%clk 0:00:19]} 33. Qb6 {[%clk 0:01:29]}  d2 {[%clk 0:00:09]} 34. Rd1 {[%clk 0:01:26]}  Rd8 {[%clk 0:00:08]} 35. Nxf5 {[%clk 0:01:24]}  Qxf5 {[%clk 0:00:05]} 36. Qxc6 {[%clk 0:01:23]}  e3 {[%clk 0:00:05]} 37. Qc7+ {[%clk 0:01:14]}  Rd7 {[%clk 0:00:06]} 38. Qc6 {[%clk 0:01:06]}  e2 {[%clk 0:00:05]} 39. Rxd2 {[%clk 0:01:02]}  e1=Q+ {[%clk 0:00:06]} 40. Kh2 {[%clk 0:01:02]}  Qxd2 {[%clk 0:00:06]} 41. h4 {[%clk 0:00:58]}  Qdf2 {[%clk 0:00:04]} 42. b5 {[%clk 0:00:57]}  Rg7 {[%clk 0:00:05]} 43. Qc3 {[%clk 0:00:51]}  Qxg3+ {[%clk 0:00:05]} 44. Qxg3 {[%clk 0:00:51]}  Rxg3 {[%clk 0:00:06]} 45. Kxg3 {[%clk 0:00:52]}  axb5 {[%clk 0:00:06]} 46. b4 {[%clk 0:00:52]}  Qd3+ {[%clk 0:00:06]} 0-1

[Event "January 2 Late 2024"]
[Site "https://www.chess.com"]
[Date "2024.01.02"]
[Round "2"]
[White "Vila Dupla, Aurelio"]
[Black "Mendoza, Rodrigo"]
[Result "0-1"]
[Board "213"]
[TimeControl "180+1"]
[WhiteFideId "2203383"]
[BlackFideId "3301931"]
[WhiteElo "2182"]
[BlackElo "2453"]
[WhiteTeam "ESP"]
[BlackTeam "BOL"]
[WhiteClock "0:00:17"]
[BlackClock "0:01:35"]

1. Nf3 {[%clk 0:02:33]}  Nf6 {[%clk 0:02:57]} 2. d4 {[%clk 0:00:52]}  e6 {[%clk 0:02:55]} 3. g3 {[%clk 0:00:52]}  b6 {[%clk 0:02:55]} 4. Bg2 {[%clk 0:00:53]}  Bb7 {[%clk 0:02:54]} 5. O-O {[%clk 0:00:54]}  Be7 {[%clk 0:02:55]} 6. c4 {[%clk 0:00:54]}  O-O {[%clk 0:02:55]} 7. Nc3 {[%clk 0:00:55]}  c6 {[%clk 0:02:54]} 8. Re1 {[%clk 0:00:56]}  d5 {[%clk 0:02:54]} 9. e4 {[%clk 0:00:56]}  dxe4 {[%clk 0:02:54]} 10. Nxe4 {[%clk 0:00:56]}  Nxe4 {[%clk 0:02:55]} 11. Rxe4 {[%clk 0:00:56]}  c5 {[%clk 0:02:55]} 12. Re1 {[%clk 0:00:53]}  cxd4 {[%clk 0:02:54]} 13. Qxd4 {[%clk 0:00:53]}  Nc6 {[%clk 0:02:53]} 14. Qg4 {[%clk 0:00:45]}  Bf6 {[%clk 0:02:45]} 15. Bg5 {[%clk 0:00:43]}  h6 {[%clk 0:02:45]} 16. Bxf6 {[%clk 0:00:43]}  Qxf6 {[%clk 0:02:44]} 17. b3 {[%clk 0:00:44]}  Rfd8 {[%clk 0:02:43]} 18. Rad1 {[%clk 0:00:44]}  Nb4 {[%clk 0:02:37]} 19. Ne5 {[%clk 0:00:35]}  Bxg2 {[%clk 0:02:26]} 20. Kxg2 {[%clk 0:00:34]}  Nc2 {[%clk 0:02:24]} 21. Rxd8+ {[%clk 0:00:32]}  Rxd8 {[%clk 0:02:25]} 22. Re2 {[%clk 0:00:31]}  Nd4 {[%clk 0:02:18]} 23. Re4 {[%clk 0:00:30]}  Nf5 {[%clk 0:02:07]} 24. Qe2 {[%clk 0:00:29]}  Rd6 {[%clk 0:01:50]} 25. Rf4 {[%clk 0:00:28]}  Qd8 {[%clk 0:01:48]} 26. Nf3 {[%clk 0:00:23]}  Rd1 {[%clk 0:01:39]} 27. Qe4 {[%clk 0:00:20]}  Qd3 {[%clk 0:01:37]} 28. Qxd3 {[%clk 0:00:20]}  Rxd3 {[%clk 0:01:38]} 29. Ne5 {[%clk 0:00:20]}  Rd2 {[%clk 0:01:38]} 30. g4 {[%clk 0:00:21]}  g5 {[%clk 0:01:35]} 31. Rf3 {[%clk 0:00:19]}  Nh4+ {[%clk 0:01:35]} 32. Kg3 {[%clk 0:00:17]}  Nxf3 {[%clk 0:01:35]} 0-1

[Event "January 2 Late 2024"]
[Site "https://www.chess.com"]
[Date "2024.01.02"]
[Round "2"]
[White "Porat, Tori"]
[Black "Sliwicki, Damian"]
[Result "1-0"]
[Board "216"]
[TimeControl "180+1"]
[WhiteFideId "30982626"]
[BlackFideId "1127128"]
[WhiteElo "2162"]
[BlackElo "2445"]
[WhiteTeam "USA"]
[BlackTeam "POL"]
[WhiteClock "0:00:12"]
[BlackClock "0:00:05"]

1. d4 {[%clk 0:03:00]}  c5 {[%clk 0:03:00]} 2. d5 {[%clk 0:03:00]}  d6 {[%clk 0:02:43]} 3. c4 {[%clk 0:02:59]}  g6 {[%clk 0:02:44]} 4. Nc3 {[%clk 0:02:58]}  Bg7 {[%clk 0:02:45]} 5. Nf3 {[%clk 0:02:58]}  e5 {[%clk 0:02:46]} 6. e4 {[%clk 0:02:58]}  Ne7 {[%clk 0:02:46]} 7. Be2 {[%clk 0:02:57]}  O-O {[%clk 0:02:47]} 8. O-O {[%clk 0:02:57]}  Kh8 {[%clk 0:02:48]} 9. a3 {[%clk 0:02:51]}  Ng8 {[%clk 0:02:48]} 10. b4 {[%clk 0:02:48]}  b6 {[%clk 0:02:48]} 11. Bg5 {[%clk 0:02:46]}  f6 {[%clk 0:02:38]} 12. Bh4 {[%clk 0:02:46]}  Nd7 {[%clk 0:02:27]} 13. Nb5 {[%clk 0:02:40]}  Qe7 {[%clk 0:02:19]} 14. Nc7 {[%clk 0:02:40]}  Rb8 {[%clk 0:02:19]} 15. Ne6 {[%clk 0:02:33]}  Rf7 {[%clk 0:02:12]} 16. Nd2 {[%clk 0:02:24]}  Nf8 {[%clk 0:02:05]} 17. Nxg7 {[%clk 0:02:22]}  Kxg7 {[%clk 0:02:05]} 18. Bg4 {[%clk 0:02:21]}  h5 {[%clk 0:01:57]} 19. Bxc8 {[%clk 0:02:18]}  Rxc8 {[%clk 0:01:58]} 20. f4 {[%clk 0:02:17]}  exf4 {[%clk 0:01:35]} 21. Be1 {[%clk 0:02:04]}  Qe5 {[%clk 0:00:52]} 22. Rc1 {[%clk 0:01:53]}  g5 {[%clk 0:00:45]} 23. Qxh5 {[%clk 0:01:49]}  Ng6 {[%clk 0:00:40]} 24. Qe2 {[%clk 0:01:41]}  Qb2 {[%clk 0:00:36]} 25. Bf2 {[%clk 0:01:20]}  Qxa3 {[%clk 0:00:30]} 26. bxc5 {[%clk 0:01:20]}  bxc5 {[%clk 0:00:31]} 27. Nb1 {[%clk 0:01:10]}  Qb3 {[%clk 0:00:16]} 28. Nc3 {[%clk 0:00:59]}  N8e7 {[%clk 0:00:12]} 29. Nb5 {[%clk 0:00:56]}  a6 {[%clk 0:00:12]} 30. Nxd6 {[%clk 0:00:56]}  Rh8 {[%clk 0:00:12]} 31. Nxf7 {[%clk 0:00:55]}  Kxf7 {[%clk 0:00:12]} 32. d6 {[%clk 0:00:48]}  Nc6 {[%clk 0:00:12]} 33. Qd2 {[%clk 0:00:44]}  Nge5 {[%clk 0:00:12]} 34. Qd5+ {[%clk 0:00:44]}  Kg6 {[%clk 0:00:12]} 35. d7 {[%clk 0:00:39]}  f3 {[%clk 0:00:12]} 36. Qe6 {[%clk 0:00:30]}  Qb8 {[%clk 0:00:11]} 37. Qf5+ {[%clk 0:00:28]}  Kf7 {[%clk 0:00:10]} 38. Bg3 {[%clk 0:00:27]}  Nd4 {[%clk 0:00:10]} 39. Bxe5 {[%clk 0:00:22]}  Qxe5 {[%clk 0:00:07]} 40. Qxe5 {[%clk 0:00:21]}  fxe5 {[%clk 0:00:08]} 41. Rce1 {[%clk 0:00:19]}  Ke7 {[%clk 0:00:07]} 42. gxf3 {[%clk 0:00:19]}  Rd8 {[%clk 0:00:07]} 43. Ra1 {[%clk 0:00:16]}  Rxd7 {[%clk 0:00:08]} 44. Rxa6 {[%clk 0:00:16]}  Ne2+ {[%clk 0:00:07]} 45. Kf2 {[%clk 0:00:16]}  Nf4 {[%clk 0:00:07]} 46. Rh6 {[%clk 0:00:14]}  Rd2+ {[%clk 0:00:08]} 47. Kg1 {[%clk 0:00:14]}  Rg2+ {[%clk 0:00:05]} 48. Kh1 {[%clk 0:00:15]}  g4 {[%clk 0:00:06]} 49. Rh7+ {[%clk 0:00:14]}  Kf6 {[%clk 0:00:04]} 50. fxg4 {[%clk 0:00:15]}  Rxg4 {[%clk 0:00:05]} 51. Rh6+ {[%clk 0:00:14]}  Kg5 {[%clk 0:00:05]} 52. Rh8 {[%clk 0:00:14]}  Kf6 {[%clk 0:00:04]} 53. Rf8+ {[%clk 0:00:14]}  Ke7 {[%clk 0:00:05]} 54. Ra8 {[%clk 0:00:14]}  Nh3 {[%clk 0:00:03]} 55. Ra7+ {[%clk 0:00:14]}  Ke6 {[%clk 0:00:03]} 56. Rh7 {[%clk 0:00:14]}  Nf4 {[%clk 0:00:03]} 57. Rh6+ {[%clk 0:00:15]}  Kf7 {[%clk 0:00:03]} 58. h3 {[%clk 0:00:15]}  Rg3 {[%clk 0:00:04]} 59. Kh2 {[%clk 0:00:14]}  Rg2+ {[%clk 0:00:04]} 60. Kh1 {[%clk 0:00:14]}  Re2 {[%clk 0:00:05]} 61. Ra6 {[%clk 0:00:13]}  Kg7 {[%clk 0:00:04]} 62. Ra7+ {[%clk 0:00:14]}  Kg6 {[%clk 0:00:04]} 63. Rg1+ {[%clk 0:00:13]}  Kh5 {[%clk 0:00:05]} 64. Rh7# {[%clk 0:00:12]} 1-0

[Event "January 2 Late 2024"]
[Site "https://www.chess.com"]
[Date "2024.01.02"]
[Round "2"]
[White "chucksterf10"]
[Black "Kovacevic, Radmila"]
[Result "1-0"]
[Board "217"]
[TimeControl "180+1"]
[BlackFideId "933171"]
[WhiteElo "2444"]
[BlackElo "2154"]
[BlackTeam "SRB"]
[WhiteClock "0:00:15"]
[BlackClock "0:00:11"]

1. Nf3 {[%clk 0:03:00]}  c5 {[%clk 0:02:59]} 2. c4 {[%clk 0:02:58]}  Nc6 {[%clk 0:03:00]} 3. g3 {[%clk 0:02:55]}  e5 {[%clk 0:03:01]} 4. d3 {[%clk 0:02:52]}  Be7 {[%clk 0:03:01]} 5. Bg2 {[%clk 0:02:52]}  h5 {[%clk 0:03:01]} 6. h3 {[%clk 0:02:47]}  h4 {[%clk 0:03:00]} 7. g4 {[%clk 0:02:47]}  f5 {[%clk 0:02:58]} 8. gxf5 {[%clk 0:02:46]}  d6 {[%clk 0:02:59]} 9. e4 {[%clk 0:02:47]}  Nf6 {[%clk 0:02:46]} 10. Nc3 {[%clk 0:02:46]}  Nd4 {[%clk 0:02:42]} 11. Bg5 {[%clk 0:02:44]}  Bd7 {[%clk 0:02:38]} 12. Nxh4 {[%clk 0:02:30]}  Rxh4 {[%clk 0:01:53]} 13. Bxh4 {[%clk 0:02:31]}  Qa5 {[%clk 0:01:50]} 14. O-O {[%clk 0:02:26]}  O-O-O {[%clk 0:01:43]} 15. a3 {[%clk 0:02:22]}  Rh8 {[%clk 0:01:37]} 16. b4 {[%clk 0:02:20]}  Qd8 {[%clk 0:01:31]} 17. Bxf6 {[%clk 0:02:17]}  Bxf6 {[%clk 0:01:29]} 18. Nd5 {[%clk 0:02:18]}  Bg5 {[%clk 0:01:21]} 19. bxc5 {[%clk 0:02:04]}  dxc5 {[%clk 0:01:21]} 20. a4 {[%clk 0:02:05]}  g6 {[%clk 0:01:09]} 21. fxg6 {[%clk 0:01:56]}  Kb8 {[%clk 0:01:02]} 22. f4 {[%clk 0:01:48]}  exf4 {[%clk 0:00:58]} 23. Nxf4 {[%clk 0:01:48]}  Qf6 {[%clk 0:00:51]} 24. g7 {[%clk 0:00:54]}  Qxg7 {[%clk 0:00:50]} 25. Ra2 {[%clk 0:00:55]}  Rh4 {[%clk 0:00:43]} 26. Raf2 {[%clk 0:00:46]}  Bxf4 {[%clk 0:00:41]} 27. Rxf4 {[%clk 0:00:46]}  Bxh3 {[%clk 0:00:41]} 28. Rf8+ {[%clk 0:00:45]}  Bc8 {[%clk 0:00:39]} 29. Qe1 {[%clk 0:00:34]}  Rg4 {[%clk 0:00:37]} 30. Qf2 {[%clk 0:00:23]}  Rg3 {[%clk 0:00:32]} 31. Qf4+ {[%clk 0:00:20]}  Qc7 {[%clk 0:00:31]} 32. Qxc7+ {[%clk 0:00:19]}  Kxc7 {[%clk 0:00:32]} 33. R8f7+ {[%clk 0:00:11]}  Bd7 {[%clk 0:00:31]} 34. Rd1 {[%clk 0:00:11]}  Kd6 {[%clk 0:00:27]} 35. Kf2 {[%clk 0:00:12]}  Rg6 {[%clk 0:00:22]} 36. Rh1 {[%clk 0:00:10]}  Be6 {[%clk 0:00:20]} 37. Rxb7 {[%clk 0:00:09]}  Rf6+ {[%clk 0:00:20]} 38. Ke3 {[%clk 0:00:09]}  Nc2+ {[%clk 0:00:19]} 39. Ke2 {[%clk 0:00:10]}  Nd4+ {[%clk 0:00:19]} 40. Ke1 {[%clk 0:00:09]}  Nc2+ {[%clk 0:00:18]} 41. Kd1 {[%clk 0:00:05]}  Ne3+ {[%clk 0:00:18]} 42. Kd2 {[%clk 0:00:06]}  Nxg2 {[%clk 0:00:18]} 43. Rxa7 {[%clk 0:00:06]}  Rf2+ {[%clk 0:00:17]} 44. Kc3 {[%clk 0:00:06]}  Ne3 {[%clk 0:00:17]} 45. Rh6 {[%clk 0:00:05]}  Rc2+ {[%clk 0:00:16]} 46. Kb3 {[%clk 0:00:05]}  Rxc4 {[%clk 0:00:12]} 47. dxc4 {[%clk 0:00:05]}  Ke5 {[%clk 0:00:13]} 48. Re7 {[%clk 0:00:04]}  Kd4 {[%clk 0:00:12]} 49. Rexe6 {[%clk 0:00:05]}  Nxc4 {[%clk 0:00:13]} 50. Rd6+ {[%clk 0:00:04]}  Ke5 {[%clk 0:00:13]} 51. Rhe6+ {[%clk 0:00:05]}  Kf4 {[%clk 0:00:13]} 52. Rc6 {[%clk 0:00:06]}  Kf3 {[%clk 0:00:12]} 53. Rxc5 {[%clk 0:00:06]}  Nd2+ {[%clk 0:00:12]} 54. Kc2 {[%clk 0:00:06]}  Nf1 {[%clk 0:00:11]} 55. Rf6+ {[%clk 0:00:07]}  Kxe4 {[%clk 0:00:11]} 56. Rxf1 {[%clk 0:00:07]}  Kd4 {[%clk 0:00:12]} 57. Rc3 {[%clk 0:00:08]}  Kd5 {[%clk 0:00:12]} 58. Rd3+ {[%clk 0:00:09]}  Kc5 {[%clk 0:00:12]} 59. Rb1 {[%clk 0:00:10]}  Kc4 {[%clk 0:00:11]} 60. Rc3+ {[%clk 0:00:10]}  Kd5 {[%clk 0:00:12]} 61. Rd1+ {[%clk 0:00:11]}  Ke4 {[%clk 0:00:12]} 62. Rc8 {[%clk 0:00:12]}  Ke5 {[%clk 0:00:12]} 63. Re8+ {[%clk 0:00:13]}  Kf6 {[%clk 0:00:13]} 64. Rf1+ {[%clk 0:00:13]}  Kg7 {[%clk 0:00:13]} 65. Re2 {[%clk 0:00:14]}  Kg6 {[%clk 0:00:11]} 66. Rg2+ {[%clk 0:00:15]} 1-0

[Event "January 2 Late 2024"]
[Site "https://www.chess.com"]
[Date "2024.01.02"]
[Round "2"]
[White "Gruzman, Ilya"]
[Black "th3d4rkness"]
[Result "0-1"]
[Board "218"]
[TimeControl "180+1"]
[WhiteFideId "2812703"]
[WhiteElo "2439"]
[BlackElo "2148"]
[WhiteTeam "ISR"]
[WhiteClock "0:00:00"]
[BlackClock "0:00:18"]

1. e4 {[%clk 0:03:00]}  c5 {[%clk 0:02:59]} 2. c4 {[%clk 0:03:00]}  Nc6 {[%clk 0:02:58]} 3. Ne2 {[%clk 0:03:00]}  g6 {[%clk 0:02:58]} 4. d4 {[%clk 0:03:00]}  cxd4 {[%clk 0:02:58]} 5. Nxd4 {[%clk 0:03:01]}  Bg7 {[%clk 0:02:59]} 6. Be3 {[%clk 0:03:02]}  Nf6 {[%clk 0:02:58]} 7. Nc3 {[%clk 0:03:02]}  O-O {[%clk 0:02:57]} 8. Be2 {[%clk 0:03:03]}  d6 {[%clk 0:02:56]} 9. O-O {[%clk 0:03:03]}  Bd7 {[%clk 0:02:56]} 10. f4 {[%clk 0:03:02]}  Nxd4 {[%clk 0:02:41]} 11. Bxd4 {[%clk 0:03:03]}  Bc6 {[%clk 0:02:42]} 12. Bf3 {[%clk 0:03:04]}  a5 {[%clk 0:02:36]} 13. Qe2 {[%clk 0:03:03]}  Nd7 {[%clk 0:02:34]} 14. Bxg7 {[%clk 0:03:03]}  Kxg7 {[%clk 0:02:34]} 15. Rad1 {[%clk 0:03:02]}  a4 {[%clk 0:02:29]} 16. e5 {[%clk 0:03:00]}  Qb6+ {[%clk 0:02:26]} 17. Kh1 {[%clk 0:03:00]}  dxe5 {[%clk 0:02:24]} 18. fxe5 {[%clk 0:02:56]}  e6 {[%clk 0:02:10]} 19. Rd6 {[%clk 0:02:44]}  Qc7 {[%clk 0:01:38]} 20. Bxc6 {[%clk 0:02:22]}  bxc6 {[%clk 0:01:37]} 21. Qf3 {[%clk 0:02:22]}  Ra6 {[%clk 0:01:21]} 22. Ne4 {[%clk 0:02:20]}  Rb6 {[%clk 0:01:04]} 23. c5 {[%clk 0:02:13]}  Rxb2 {[%clk 0:01:01]} 24. Nf6 {[%clk 0:02:03]}  Nxf6 {[%clk 0:00:59]} 25. exf6+ {[%clk 0:02:04]}  Kh8 {[%clk 0:00:56]} 26. Rd3 {[%clk 0:01:23]}  Rxa2 {[%clk 0:00:51]} 27. Qh3 {[%clk 0:01:21]}  Qe5 {[%clk 0:00:45]} 28. Qh6 {[%clk 0:01:14]}  Rg8 {[%clk 0:00:43]} 29. h3 {[%clk 0:01:05]}  Ra1 {[%clk 0:00:32]} 30. Rf3 {[%clk 0:00:31]}  Rxf1+ {[%clk 0:00:30]} 31. Rxf1 {[%clk 0:00:32]}  a3 {[%clk 0:00:30]} 32. Qd2 {[%clk 0:00:19]}  Qb2 {[%clk 0:00:28]} 33. Qh6 {[%clk 0:00:09]}  a2 {[%clk 0:00:25]} 34. Rf4 {[%clk 0:00:06]}  a1=Q+ {[%clk 0:00:24]} 35. Kh2 {[%clk 0:00:07]}  Qxf6 {[%clk 0:00:22]} 36. Rxf6 {[%clk 0:00:02]}  Qxf6 {[%clk 0:00:21]} 37. h4 {[%clk 0:00:01]}  Rd8 {[%clk 0:00:19]} 38. h5 {[%clk 0:00:00]}  Qe5+ {[%clk 0:00:18]} 0-1